Cogmind - Beta 10.2 @@@ ROGUE MODE // 2021.10.31 @ 03:56:09 // Winter2019/RPGLIKE Player: SHOCK Result: Destroyed by as-01400 with Assembled Rifle Performance ------------- Evolutions (0) 0 Regions Visited (2) 400 Robots Destroyed (0) 0 Value Destroyed (0) 0 Prototype IDs (0) 0 Alien Tech Used (0) 0 Bonus (0) 0 TOTAL SCORE: 400 Bonus ------- None Cogmind --------- Core Integrity 0/600 Matter 177/300 Energy 98/100 System Corruption 0% Temperature Cool (0) Movement Core (50) Location -10/Mines Parts ------- > --- POWER (1) -------- (None) > --- PROPULSION (2) --- (None) > --- UTILITY (4) ------ (None) > --- WEAPON (2) ------- (None) > --- INVENTORY (3) ---- (None) Peak State ------------ > --- POWER ------------ (None) > --- PROPULSION ------- Wheel > --- UTILITY ---------- (None) > --- WEAPON ----------- EM Pulse Gun > --- INVENTORY -------- (None) [Rating: 2] Favorites ----------- Power None Propulsion Wheel Wheel Wheel Utility None Weapon EM Pulse Gun Energy Gun EM Pulse Gun Build | -11 -10 -10 ------- Run | Scr Mat Min Slots Evolved 5 | . . 5 Power . | . . . Propulsion 1 | . . 1 Utility 3 | . . 3 Weapon 1 | . . 1 Parts Attached 2 | 2 . . Power . | . . . Engine . | . . . Core . | . . . Reactor . | . . . Propulsion 1 | 1 . . Treads . | . . . Leg . | . . . Wheel 1 | 1 . . Hover . | . . . Flight . | . . . Utility . | . . . Device . | . . . Storage . | . . . Processor . | . . . Hackware . | . . . Protection . | . . . Artifact . | . . . Weapon 1 | 1 . . Energy Gun 1 | 1 . . Energy Cannon . | . . . Ballistic Gun . | . . . Ballistic Cannon . | . . . Launcher . | . . . Special Weapon . | . . . Impact Weapon . | . . . Slashing Weapon . | . . . Piercing Weapon . | . . . Special Melee Weapon . | . . . Unidentified Prototypes . | . . . Parts Lost 2 | . . 2 Power . | . . . Propulsion 1 | . . 1 Utility . | . . . Weapon 1 | . . 1 Highest Loss Streak 2 | . . 2 Average Slot Usage (%) 39 | . 50 20 Wheel 20 | . 25 11 Energy Gun 19 | . 25 8 Naked Turns 20 | . . 20 Heaviest Build 2 | 2 2 2 Greatest Support 30 | 10 10 30 Greatest Overweight (x) . | . . . Average Overweight (x) . | . . . Largest Inventory Capacity 3 | . . 3 Average Capacity . | . . 2 Most Carried . | . . . Average Carried . | . . . Final Capacity 3 | . . 3 Final Carried . | . . . Class Distribution -------------------- 67% | Hacker-Mutant 32% | Mutant Dominant Class ---------------- Hacker-Mutant | -10/Materials Hacker-Mutant | -10/Mines Resources | -11 -10 -10 ----------- Run | Scr Mat Min Matter Collected 68 | 60 . 8 Remotely . | . . . Salvage Created . | . . . Parts . | . . . Haulers Intercepted . | . . . Recyclers Shooed 1 | 1 . . Parts Field Recycled . | . . . Retrieved Matter . | . . . Parts Self-Destructed . | . . . Prevented . | . . . Kills | -11 -10 -10 ------- Run | Scr Mat Min Combat Hostiles Destroyed . | . . . Classes Destroyed . | . . . Best Kill Streak . | . . . Combat Bots Only . | . . . Max Kills in Single Turn . | . . . Gunslinging . | . . . Exploded . | . . . Melee . | . . . Uniques/NPCs Destroyed . | . . . Combat | -11 -10 -10 -------- Run | Scr Mat Min Damage Taken 695 | 1 179 515 Core 610 | . 159 451 Absorbed by Shields . | . . . Redirected to Core 285 | . 65 220 Core Remaining (%) 100 | 100 . . Volleys Fired . | . . . Largest . | . . . Hottest . | . . . Shots Fired . | . . . Gun . | . . . Cannon . | . . . Launcher . | . . . Special . | . . . Kinetic . | . . . Thermal . | . . . Explosive . | . . . Electromagnetic . | . . . Robot Hit Streak . | . . . Robot Miss Streak . | . . . Penetration Max . | . . . Secondary Targets . | . . . Shots Hit Robots . | . . . Core Hits . | . . . Critical Hits . | . . . Critical Kills . | . . . Critical Parts Destroyed . | . . . Melee Attacks . | . . . Impact . | . . . Slashing . | . . . Piercing . | . . . Sneak Attacks . | . . . Combat Hostiles . | . . . Follow-up Attacks . | . . . Damage Inflicted 11 | 4 . 7 Guns . | . . . Cannons . | . . . Explosions . | . . . Melee . | . . . Ramming 11 | 4 . 7 Kinetic . | . . . Thermal . | . . . Explosive . | . . . Electromagnetic . | . . . Impact . | . . . Slashing . | . . . Piercing . | . . . Highest Corruption . | . . . Average Corruption . | . . . Corruption Purged . | . . . Overload Shots . | . . . Overflow Damage . | . . . Projectiles . | . . . Explosions . | . . . Melee . | . . . Knockbacks . | . . . Impact . | . . . Kinetic . | . . . Secondary . | . . . Self-Inflicted Damage 4 | 1 . 3 Shots . | . . . Rammed 5 | 2 . 3 Targets Rammed 5 | 2 . 3 Kicked . | . . . Crushed . | . . . Highest Temperature . | . . . Average Temperature . | . . . Received Heat Transfer . | . . . Siege Activations . | . . . Robots Corrupted . | . . . Combat Hostiles . | . . . Parts Fried . | . . . Impact Corruptions . | . . . Robots Melted . | . . . Combat Hostiles . | . . . Parts Melted . | . . . Heat Transferred . | . . . Parts Sabotaged . | . . . Parts Stolen . | . . . Parts Stripped . | . . . Power Chain Reactions . | . . . Missiles Intercepted . | . . . Alert | -11 -10 -10 ------- Run | Scr Mat Min Peak Influence 36 | . 36 28 Initial 13 | . . 13 Average 8 | . 7 14 Maximum Alert Level . | . . . Low Security (%) 100 | 100 100 100 Level 1 . | . . . Level 2 . | . . . Level 3 . | . . . Level 4 . | . . . Level 5 . | . . . High Security . | . . . Max Security . | . . . Squads Dispatched 1 | . 1 . Investigation . | . . . Extermination . | . . . Reinforcement 1 | . 1 . Assault . | . . . Garrison . | . . . Intercept . | . . . Construction Impeded . | . . . Haulers Reinforced . | . . . Stealth | -11 -10 -10 --------- Run | Scr Mat Min Distress Signals . | . . . Communications Jammed . | . . . Distress Signals . | . . . Times Spotted 23 | . 5 18 Peak Tracking Total 17 | . 6 17 Tactical Retreats 2 | . . 2 Traps | -11 -10 -10 ------- Run | Scr Mat Min Traps Triggered . | . . . Indirectly . | . . . Trap Hack Attempts . | . . . Triggered . | . . . Disarmed . | . . . Reprogrammed . | . . . Reused . | . . . Traps Extracted . | . . . Installed . | . . . Triggered . | . . . Machines | -11 -10 -10 ---------- Run | Scr Mat Min Machines Disabled . | . . . Max in Single Turn . | . . . Machines Sabotaged . | . . . Garrisons Compromised . | . . . Overloaded Fab Kills . | . . . Fab Network Shutdowns . | . . . Hacking | -11 -10 -10 --------- Run | Scr Mat Min Machines Accessed 2 | . 2 . Terminals 2 | . 2 . Fabricators . | . . . Repair Stations . | . . . Recycling Units . | . . . Scanalyzers . | . . . Garrison Access . | . . . Total Hacks 5 | . 5 . Successful 1 | . 1 . Failed 4 | . 4 . Catastrophic . | . . . Database Lockouts . | . . . Manual 5 | . 5 . Terminals 5 | . 5 . Fabricators . | . . . Repair Stations . | . . . Recycling Units . | . . . Scanalyzers . | . . . Garrison Access . | . . . Terminal Hacks 1 | . 1 . Branch Access Points 1 | . 1 . Fabricator Hacks . | . . . Repair Station Hacks . | . . . Recycling Unit Hacks . | . . . Scanalyzer . | . . . Garrison Access Hacks . | . . . Unauthorized Hacks . | . . . Terminals . | . . . Fabricators . | . . . Repair Stations . | . . . Recycling Units . | . . . Scanalyzers . | . . . Garrison Access . | . . . Data Cores Recovered . | . . . Used . | . . . Hacking Detections 1 | . 1 . Full Trace Events 1 | . 1 . Feedback Events . | . . . Feedback Blocked . | . . . Robot Schematics Acquired . | . . . Robots Built . | . . . Matter . | . . . Time . | . . . Total Robot Build Rating . | . . . Part Schematics Acquired . | . . . Parts Built . | . . . Matter . | . . . Time . | . . . Total Part Build Rating . | . . . Parts Repaired . | . . . Time . | . . . Parts Recycled . | . . . Recycled Matter . | . . . Retrieved Matter . | . . . Retrieved Components . | . . . Parts Scanalyzed . | . . . Part Schematics Acquired . | . . . Parts Damaged . | . . . Bothacking | -11 -10 -10 ------------ Run | Scr Mat Min Used RIF Installer . | . . . Robots Hacked . | . . . Non-combat . | . . . Combat . | . . . Robot Hacks Applied . | . . . Relay Couplers Released . | . . . Robots Rewired . | . . . Allies Hacked . | . . . Hacks Repelled . | . . . Allies | -11 -10 -10 -------- Run | Scr Mat Min Total Allies . | . . . Largest Group . | . . . Highest-Rated Group . | . . . Highest-Rated Ally . | . . . Total Orders . | . . . Ally Attacks . | . . . Total Damage . | . . . Kills . | . . . Allies Corrupted . | . . . Allies Melted . | . . . Intel | -11 -10 -10 ------- Run | Scr Mat Min Robot Analysis Total . | . . . Derelict Logs Recovered . | . . . Drone Launches . | . . . Drone Recoveries . | . . . Exploration | -11 -10 -10 ------------- Run | Scr Mat Min Turns Passed 213 | 22 125 66 Spaces Moved 245 | 24 157 64 Core 26 | 6 . 20 Treads . | . . . Legs . | . . . Wheels 219 | 18 157 44 Hover . | . . . Flight . | . . . Fastest Speed 50 | 50 80 50 Average Speed 76 | 72 80 70 Slowest Speed 80 | 80 80 80 Overloaded Moves . | . . . Propulsion Burnouts . | . . . Robots Hopped . | . . . Cave-ins Triggered . | . . . Exploration Rate (%) 18 | 3 29 24 Regions Visited 2 Branch Regions 1 Pre-discovered Areas . | . . . Known Exits Taken 1 | . 1 . Unknown Exits Taken 1 | 1 . . Scrap Searched . | . . . Spaces Dug . | . . . Terrain Destroyed . | . . . Melee . | . . . Projectile . | . . . AOE . | . . . Terrain Rammed . | . . . Walls Destroyed . | . . . Machines Disabled . | . . . Actions | -11 -10 -10 --------- Run | Scr Mat Min Total 268 | 27 156 85 Wait 18 | . . 18 Move 243 | 23 156 64 Hop . | . . . Pick Up . | . . . Fast Attach 2 | 2 . . Attach . | . . . Detach . | . . . Swap . | . . . Drop . | . . . Fire . | . . . Melee . | . . . Ram 5 | 2 . 3 Kick . | . . . Crush . | . . . Escape Stasis . | . . . Rewire . | . . . Trap . | . . . Miscellaneous . | . . . Route ------- -11/Scrapyard -10/Materials -10/Mines History --------- Turn | Location | Event 9 | -11/Scrapyard | Discovered new exit (range 14) 23 | -11/Scrapyard | Entered Materials 133 | -10/Materials | Identified exit to Mines 148 | -10/Materials | Entered Mines 149 | -10/Mines | Assembled infested the area 154 | -10/Mines | Assisted by a Guerilla fighting off Assembled 166 | -10/Mines | Upgraded with Propulsion slot (x1) 166 | -10/Mines | Upgraded with Utility slot (x3) 166 | -10/Mines | Upgraded with Weapon slot (x1) 174 | -10/Mines | Core integrity fell below 50% 191 | -10/Mines | Core integrity fell below 20% 214 | -10/Mines | Destroyed by as-01400 with Assembled Rifle Last Messages --------------- 00168_ Upgraded: Inventory Capacity (+3) 00173_ Slammed into as-66327. 00173_ Destabilizing: Core damaged (-24). 00173_ as-61834 destroyed. 00173_ as-66327 destroyed. 00173_ as-49773 destroyed. 00173_ as-05733 destroyed. 00175_ Slammed into YI-UF0. 00175_ as-59023 destroyed. 00175_ EM Pulse Gun destroyed. 00176_ The unstable cave ceiling collapses. 00180_ Acquired 8 matter. 00182_ The unstable cave ceiling collapses. 00183_ D-53 Grenadier destroyed. 00184_ The unstable cave ceiling collapses. 00188_ D-53 Grenadier destroyed. 00192_ The unstable cave ceiling collapses. 00192_ YI-UF0: "KAPOW!" 00194_ Wheel destroyed. 00195_ The unstable cave ceiling collapses. Map ----- +----------------------------------------------------+ | | | | | | | | | | | | | | | | | | | | | ????????????????????????????????????? | | ????????????????????????????????????? | | ????????????????????????????????????? | | ????????????????????????????????????? | | ????????????????????????????????????? | | ????????????????????????????????????? | | ????????????????????????????????????? | | ????????????????????????????????????? | | ????###?????????????????????????????? | | ???## #????????????????????????????? | | ???# #????###????????????????????? | | ???# ##### ##???????????????????? | | ???# #???????????????????? | | ????# #???????????????????? | | ?????# ##???????????????????? | | ?????## @aa#????????????????????? | | ??????### #????????????????????? | | ????????## ##????????####???????? | | ?????????# #??????? ???????? | | ?????????# #?????? ??????? | | ?????????## ###### #??????? | | ??????????## #???????? | | ??????????## #????????? | | ?????????## #####????????? | | ?????????# g ## ##????????????? | | ?????????# ##??##?????????????? | | ?????????## < ####????????????????? | | ?????????# ##???????????????? | | ?????????# ##??????????????? | | ?????##### ###????????????? | | ????## =## ######???????? | | ???## !% ##??????? | | ??## # #??????? | | ?## ## #??????? | | ?# ## ##??????? | | ?## # # ##???????? | | ??### ## # ##????????? | | ????#??### #?????????? | | ?????????#### # #?????????? | | ????# ####### ## # #?????????? | +----------------------------------------------------+ Best States ------------- Heat Dissipation 25 Energy Generation 5 Energy Capacity 100 Matter Stores 177 Matter Capacity 300 Sight Range 16 Terrain Scan Density 10 Evasion (%) 50 Offensive Hacking 25 Item Schematics ----------------- None Robot Schematics ------------------ None Fabricated ------------ Nothing Alien Tech Used ----------------- None Achievements -------------- None Challenges ------------ None RPGLIKE | -11 -10 -10 --------- Run | Scr Mat Min Levels Raised . | . . . XP Earned 3530 | 3000 30 500 XP Spent 11300 | . 3000 8300 Upgrades 17 | . 5 12 Propulsion Slot 1 | . . 1 Utility Slot 3 | . . 3 Weapon Slot 1 | . . 1 Mass Support 4 | . . 4 Inventory Capacity 3 | . . 3 Hack Attack % 5 | . 5 . Protomatter Created . | . . . Protomatter Decayed . | . . . Game ------ Seed ImprinterLauncherSpear Manual? 0 Play Time 00:06:03 Cumulative 13.6 hours Start 2021.10.31 @ 03:52:38 End 2021.10.31 @ 03:56:09 Sessions 1 Manual Loads 0 Difficulty Rogue Special Mode Winter2019/RPGLIKE Game No. 13 Rogue 13 Adventurer 0 Explorer 0 Win Type - Total 1 Types 0/0/0/0/1/0/0/0/0 Lore% 33 Gallery% 29 Achievement% 64 Wizard Run 0 Options --------- ASCII 0 Keyboard 0 Movement Arrows Keybinds 0 Fullscreen 2 Font 18/X11 Map View 76x50 Tactical HUD 1 Map Filters NONE Filters NONE Steam 1 RUN: f276ce20-c580-4791-8251-dbcb7a6a2d95